[Event "Championnat d'Europe Rapide"]
[Date "2024.12.08"]
[White "Dardha, Daniel"]
[Black "Kilic, Eray"]
[WhiteElo "2639"]
[BlackElo "2459"]
[Round "8.10"]
[Result "1-0"]
[TimeControl "900+10"]

1. d4 {[%clk 00:15:17]} Nf6 {[%emt 00:00:02] [%clk 00:15:19]} 2. c4 {[%emt
00:00:02] [%clk 00:15:25]} e6 {[%clk 00:15:28]} 3. Nc3 {[%emt 00:00:02] [%clk
00:15:33]} d5 {[%emt 00:00:02] [%clk 00:15:36]} 4. cxd5 {[%emt 00:00:03] [%clk
00:15:40]} exd5 {[%emt 00:00:01] [%clk 00:15:45]} 5. Bg5 {[%emt 00:00:02] [%clk
00:15:48]} Bb4 {[%emt 00:00:01] [%clk 00:15:54]} 6. e3 {[%emt 00:00:24] [%clk
00:15:34]} h6 {[%emt 00:00:02] [%clk 00:16:02]} 7. Bxf6 {[%emt 00:00:33] [%clk
00:15:11]} Qxf6 {[%emt 00:00:01] [%clk 00:16:10]} 8. Qb3 {[%emt 00:00:03] [%clk
00:15:18]} c5 {[%emt 00:01:00] [%clk 00:15:20]} 9. dxc5 {[%emt 00:01:05] [%clk
00:14:24]} Bxc3+ {[%emt 00:00:04] [%clk 00:15:26]} 10. Qxc3 {[%emt 00:01:42]
[%clk 00:12:52]} Qxc3+ {[%emt 00:00:04] [%clk 00:15:32]} 11. bxc3 {[%emt
00:00:02] [%clk 00:13:00]} Nd7 {[%emt 00:00:29] [%clk 00:15:13]} 12. Rd1 {[%emt
00:02:57] [%clk 00:10:12]} Nf6 {[%emt 00:00:02] [%clk 00:15:21]} 13. Nf3 {[%emt
00:00:57] [%clk 00:09:25]} Bd7 {[%emt 00:00:12] [%clk 00:15:19]} 14. Rb1 {[%emt
00:01:29] [%clk 00:08:06]} Rb8 {[%emt 00:03:10] [%clk 00:12:20]} 15. c4 {[%emt
00:01:36] [%clk 00:06:40]} Ke7 {[%emt 00:00:50] [%clk 00:11:40]} 16. cxd5 {[%emt
00:00:32] [%clk 00:06:18]} Nxd5 {[%emt 00:00:01] [%clk 00:11:49]} 17. Bc4 {[%emt
00:02:07] [%clk 00:04:21]} Be6 {[%emt 00:01:18] [%clk 00:10:40]} 18. Nd4 {[%emt
00:00:27] [%clk 00:04:04]} Nc3 {[%emt 00:02:20] [%clk 00:08:30]} 19. Rc1 {[%emt
00:00:02] [%clk 00:04:13]} Bxc4 {[%emt 00:00:32] [%clk 00:08:08]} 20. Rxc3
{[%emt 00:00:02] [%clk 00:04:21]} Bxa2 {[%emt 00:00:02] [%clk 00:08:16]} 21. Ke2
{[%emt 00:01:24] [%clk 00:03:06]} Bd5 {[%emt 00:01:28] [%clk 00:06:58]} 22. e4
{[%emt 00:00:02] [%clk 00:03:15]} Bc6 {[%emt 00:02:00] [%clk 00:05:08]} 23. Ra1
{[%emt 00:00:04] [%clk 00:03:20]} Rhd8 {[%emt 00:01:28] [%clk 00:03:51]} 24. Ke3
{[%emt 00:00:32] [%clk 00:02:59]} Ra8 {[%emt 00:00:38] [%clk 00:03:23]} 25. Rca3
{[%emt 00:00:12] [%clk 00:02:56]} Kd7 {[%emt 00:00:15] [%clk 00:03:17]} 26. Rxa7
{[%emt 00:00:22] [%clk 00:02:45]} Rxa7 {[%clk 00:03:27]} 27. Rxa7 {[%emt
00:00:02] [%clk 00:02:53]} Re8 {[%clk 00:03:36]} 28. f3 {[%emt 00:00:17] [%clk
00:02:46]} Re5 {[%emt 00:00:01] [%clk 00:03:45]} 29. Nb3 {[%emt 00:00:31] [%clk
00:02:25]} Rh5 {[%emt 00:00:50] [%clk 00:03:04]} 30. h3 {[%emt 00:00:03] [%clk
00:02:33]} f5 {[%emt 00:00:03] [%clk 00:03:11]} 31. g4 {[%emt 00:00:33] [%clk
00:02:10]} fxg4 {[%emt 00:00:42] [%clk 00:02:38]} 32. hxg4 {[%emt 00:00:01]
[%clk 00:02:19]} Rh1 {[%emt 00:00:08] [%clk 00:02:40]} 33. Ra8 {[%emt 00:00:02]
[%clk 00:02:28]} Re1+ {[%emt 00:00:27] [%clk 00:02:22]} 34. Kf4 {[%emt 00:00:12]
[%clk 00:02:26]} Rb1 {[%emt 00:00:45] [%clk 00:01:48]} 35. Nd4 {[%emt 00:00:55]
[%clk 00:01:41]} Rc1 {[%emt 00:00:01] [%clk 00:01:57]} 36. Ra5 {[%emt 00:00:22]
[%clk 00:01:28]} g6 {[%emt 00:00:33] [%clk 00:01:35]} 37. g5 {[%emt 00:00:18]
[%clk 00:01:20]} h5 {[%emt 00:00:12] [%clk 00:01:34]} 38. Ra8 {[%clk 00:01:28]}
Rxc5 {[%emt 00:00:49] [%clk 00:00:55]} 39. Rg8 {[%emt 00:00:01] [%clk 00:01:36]}
Rc4 {[%emt 00:00:02] [%clk 00:01:04]} 40. Rg7+ {[%emt 00:00:24] [%clk 00:01:21]}
Ke8 {[%emt 00:00:18] [%clk 00:00:56]} 41. Ke5 {[%emt 00:00:02] [%clk 00:01:29]}
Bd7 {[%emt 00:00:34] [%clk 00:00:33]} 42. Rxg6 {[%emt 00:00:08] [%clk 00:01:31]}
h4 {[%emt 00:00:01] [%clk 00:00:42]} 43. Rh6 {[%emt 00:00:05] [%clk 00:01:36]}
h3 {[%emt 00:00:06] [%clk 00:00:46]} 44. Nf5 {[%emt 00:00:15] [%clk 00:01:30]}
Rc5+ {[%emt 00:00:02] [%clk 00:00:55]} 45. Kf4 {[%emt 00:00:02] [%clk 00:01:37]}
Bxf5 {[%emt 00:00:09] [%clk 00:00:57]} 46. exf5 {[%emt 00:00:01] [%clk
00:01:46]} Rc4+ {[%clk 00:01:06]} 47. Kg3 {[%emt 00:00:06] [%clk 00:01:49]} Rc5
{[%emt 00:00:01] [%clk 00:01:16]} 48. Kxh3 {[%emt 00:00:16] [%clk 00:01:43]}
Rxf5 {[%emt 00:00:01] [%clk 00:01:24]} 49. Kg4 {[%emt 00:00:01] [%clk 00:01:52]}
Rc5 {[%emt 00:00:02] [%clk 00:01:33]} 50. Rh7 {[%emt 00:00:02] [%clk 00:02:00]}
b5 {[%clk 00:01:42]} 51. Rb7 {[%emt 00:00:01] [%clk 00:02:09]} Kf8 {[%emt
00:00:02] [%clk 00:01:50]} 52. f4 {[%emt 00:00:01] [%clk 00:02:18]} Kg8 {[%emt
00:00:12] [%clk 00:01:48]} 53. g6 {[%emt 00:00:02] [%clk 00:02:26]} Rd5 {[%emt
00:00:03] [%clk 00:01:55]} 54. f5 {[%emt 00:00:04] [%clk 00:02:32]} Rd1 {[%clk
00:02:04]} 55. Kg5 {[%emt 00:00:01] [%clk 00:02:40]} 1-0

[Site "Europe Echecs"]

[Event "Championnat d'Europe Rapide"]
[Date "2024.12.08"]
[White "Beerdsen, Thomas"]
[Black "Laurusas, Tomas"]
[WhiteElo "2502"]
[BlackElo "2578"]
[Round "8.11"]
[Result "1-0"]
[TimeControl "900+10"]

1. e4 {[%emt 00:00:02] [%clk 00:15:18]} e5 {[%emt 00:00:12] [%clk 00:15:09]} 2.
Nc3 {[%emt 00:00:02] [%clk 00:15:26]} Nf6 {[%emt 00:00:05] [%clk 00:15:14]} 3.
f4 {[%emt 00:00:01] [%clk 00:15:34]} d5 {[%emt 00:00:19] [%clk 00:15:05]} 4.
fxe5 {[%emt 00:00:02] [%clk 00:15:41]} Nxe4 {[%emt 00:00:02] [%clk 00:15:14]} 5.
Nf3 {[%emt 00:00:02] [%clk 00:15:49]} Be7 {[%emt 00:00:26] [%clk 00:14:58]} 6.
d4 {[%emt 00:00:03] [%clk 00:15:56]} c5 {[%emt 00:00:42] [%clk 00:14:27]} 7. Bd3
{[%emt 00:00:07] [%clk 00:15:58]} Nxc3 {[%emt 00:00:33] [%clk 00:14:04]} 8. bxc3
{[%emt 00:00:02] [%clk 00:16:07]} Nc6 {[%emt 00:00:08] [%clk 00:14:05]} 9. O-O
{[%emt 00:00:11] [%clk 00:16:05]} O-O {[%emt 00:00:12] [%clk 00:14:04]} 10. Qe1
{[%emt 00:00:04] [%clk 00:16:11]} c4 {[%emt 00:01:11] [%clk 00:13:03]} 11. Be2
{[%emt 00:00:01] [%clk 00:16:19]} b5 {[%emt 00:00:02] [%clk 00:13:12]} 12. a4
{[%emt 00:02:04] [%clk 00:14:24]} bxa4 {[%emt 00:02:07] [%clk 00:11:15]} 13.
Rxa4 {[%emt 00:00:32] [%clk 00:14:02]} Rb8 {[%emt 00:00:04] [%clk 00:11:20]} 14.
Qg3 {[%emt 00:00:09] [%clk 00:14:03]} Bf5 {[%emt 00:00:05] [%clk 00:11:26]} 15.
Ng5 {[%emt 00:01:03] [%clk 00:13:10]} Bxc2 {[%emt 00:01:17] [%clk 00:10:19]} 16.
Ra2 {[%emt 00:00:26] [%clk 00:12:53]} Bg6 {[%emt 00:00:42] [%clk 00:09:47]} 17.
h4 {[%emt 00:00:33] [%clk 00:12:29]} Rb1 {[%emt 00:02:14] [%clk 00:07:43]} 18.
Be3 {[%emt 00:02:15] [%clk 00:10:25]} Rxf1+ {[%emt 00:00:10] [%clk 00:07:43]}
19. Bxf1 {[%emt 00:00:07] [%clk 00:10:29]} h6 {[%emt 00:01:53] [%clk 00:06:00]}
20. Ne6 {[%emt 00:00:05] [%clk 00:10:34]} fxe6 {[%emt 00:01:12] [%clk 00:04:58]}
21. Qxg6 {[%emt 00:00:01] [%clk 00:10:42]} Qd7 {[%emt 00:00:07] [%clk 00:05:01]}
22. g3 {[%emt 00:03:21] [%clk 00:07:31]} Nd8 {[%emt 00:00:02] [%clk 00:05:10]}
23. Bxh6 {[%emt 00:00:20] [%clk 00:07:20]} Rf7 {[%emt 00:00:14] [%clk 00:05:07]}
24. Bh3 {[%emt 00:00:30] [%clk 00:06:59]} Bf8 {[%emt 00:01:46] [%clk 00:03:32]}
25. Bg5 {[%emt 00:00:20] [%clk 00:06:48]} Be7 {[%emt 00:00:05] [%clk 00:03:37]}
26. Ra6 {[%emt 00:01:17] [%clk 00:05:41]} Bxg5 {[%emt 00:00:22] [%clk 00:03:25]}
27. hxg5 {[%emt 00:00:42] [%clk 00:05:08]} Qb7 {[%emt 00:02:25] [%clk 00:01:11]}
28. Rd6 {[%emt 00:00:23] [%clk 00:04:56]} Rf8 {[%emt 00:00:18] [%clk 00:01:03]}
29. Rxd8 {[%emt 00:01:01] [%clk 00:04:05]} Rxd8 {[%emt 00:00:01] [%clk
00:01:12]} 30. Bxe6+ {[%emt 00:00:02] [%clk 00:04:12]} Kf8 {[%clk 00:01:21]} 31.
Qh7 {[%emt 00:00:12] [%clk 00:04:10]} Rb8 {[%emt 00:00:42] [%clk 00:00:50]} 32.
Qg8+ {[%emt 00:00:04] [%clk 00:04:15]} Ke7 {[%emt 00:00:02] [%clk 00:00:59]} 33.
Qf7+ {[%emt 00:00:01] [%clk 00:04:24]} Kd8 {[%clk 00:01:08]} 34. Qf8+ {[%clk
00:04:33]} Kc7 {[%emt 00:00:01] [%clk 00:01:17]} 35. Qd6# {[%emt 00:00:01] [%clk
00:04:42]} 1-0

[Site "Europe Echecs"]

[Event "Championnat d'Europe Rapide"]
[Date "2024.12.08"]
[White "Bernadskiy, Vitaliy"]
[Black "Popovic, Milos T"]
[WhiteElo "2546"]
[BlackElo "2334"]
[Round "8.12"]
[Result "1-0"]
[TimeControl "900+10"]

1. e4 {[%emt 00:00:02] [%clk 00:15:18]} c5 {[%emt 00:00:03] [%clk 00:15:18]} 2.
Nc3 {[%emt 00:00:01] [%clk 00:15:27]} e6 {[%emt 00:00:11] [%clk 00:15:17]} 3.
Nf3 {[%emt 00:00:03] [%clk 00:15:34]} a6 {[%emt 00:00:03] [%clk 00:15:24]} 4. g3
{[%emt 00:00:06] [%clk 00:15:38]} b5 {[%emt 00:00:09] [%clk 00:15:25]} 5. Bg2
{[%emt 00:00:02] [%clk 00:15:45]} Bb7 {[%emt 00:00:02] [%clk 00:15:34]} 6. d4
{[%emt 00:00:07] [%clk 00:15:48]} cxd4 {[%emt 00:00:04] [%clk 00:15:41]} 7. Nxd4
{[%emt 00:00:02] [%clk 00:15:55]} Nf6 {[%emt 00:02:01] [%clk 00:13:49]} 8. O-O
{[%emt 00:00:24] [%clk 00:15:42]} d6 {[%emt 00:00:04] [%clk 00:13:54]} 9. Re1
{[%emt 00:00:06] [%clk 00:15:45]} Nbd7 {[%emt 00:00:05] [%clk 00:14:00]} 10. a4
{[%emt 00:01:23] [%clk 00:14:32]} b4 {[%emt 00:00:11] [%clk 00:13:59]} 11. Nd5
{[%emt 00:00:02] [%clk 00:14:40]} e5 {[%emt 00:05:45] [%clk 00:08:24]} 12. Nf5
{[%emt 00:01:50] [%clk 00:12:59]} Nxd5 {[%emt 00:00:14] [%clk 00:08:21]} 13.
exd5 {[%emt 00:00:02] [%clk 00:13:06]} g6 {[%emt 00:00:06] [%clk 00:08:26]} 14.
Nd4 {[%emt 00:00:04] [%clk 00:13:12]} Bg7 {[%emt 00:01:07] [%clk 00:07:29]} 15.
Nc6 {[%emt 00:00:13] [%clk 00:13:08]} Qc7 {[%clk 00:07:38]} 16. Nxb4 {[%emt
00:00:09] [%clk 00:13:10]} O-O {[%emt 00:00:01] [%clk 00:07:47]} 17. Ra3 {[%emt
00:01:18] [%clk 00:12:02]} f5 {[%emt 00:01:51] [%clk 00:06:05]} 18. Nc6 {[%emt
00:00:05] [%clk 00:12:08]} Nc5 {[%emt 00:01:06] [%clk 00:05:09]} 19. b4 {[%emt
00:01:31] [%clk 00:10:46]} Ne4 {[%emt 00:00:01] [%clk 00:05:18]} 20. c4 {[%emt
00:00:50] [%clk 00:10:06]} Bxc6 {[%emt 00:00:25] [%clk 00:05:04]} 21. dxc6
{[%emt 00:00:02] [%clk 00:10:14]} Qxc6 {[%emt 00:00:02] [%clk 00:05:12]} 22.
Bxe4 {[%emt 00:00:31] [%clk 00:09:52]} fxe4 {[%emt 00:00:02] [%clk 00:05:20]}
23. Qd5+ {[%emt 00:00:02] [%clk 00:10:01]} Qxd5 {[%emt 00:00:06] [%clk
00:05:24]} 24. cxd5 {[%emt 00:00:02] [%clk 00:10:09]} Rfc8 {[%emt 00:00:13]
[%clk 00:05:21]} 25. Be3 {[%emt 00:00:04] [%clk 00:10:14]} Rc4 {[%emt 00:00:09]
[%clk 00:05:23]} 26. Rb1 {[%emt 00:00:09] [%clk 00:10:15]} Bf8 {[%emt 00:00:44]
[%clk 00:04:49]} 27. a5 {[%emt 00:00:15] [%clk 00:10:10]} Rb8 {[%emt 00:00:47]
[%clk 00:04:12]} 28. b5 {[%emt 00:00:01] [%clk 00:10:18]} Kf7 {[%emt 00:01:00]
[%clk 00:03:22]} 29. b6 {[%emt 00:00:30] [%clk 00:09:57]} Rb7 {[%emt 00:00:13]
[%clk 00:03:20]} 30. Rc1 {[%emt 00:00:01] [%clk 00:10:05]} Rb4 {[%emt 00:02:44]
[%clk 00:00:47]} 31. Rac3 {[%emt 00:00:04] [%clk 00:10:10]} Be7 {[%emt 00:00:01]
[%clk 00:00:56]} 32. Rc7 {[%emt 00:00:04] [%clk 00:10:16]} Rb8 {[%emt 00:00:01]
[%clk 00:01:05]} 33. Ra7 {[%emt 00:00:07] [%clk 00:10:20]} 1-0

[Site "Europe Echecs"]

[Event "Championnat d'Europe Rapide"]
[Date "2024.12.08"]
[White "Paichadze, Luka"]
[Black "Smeets, Jan"]
[WhiteElo "2532"]
[BlackElo "2552"]
[Round "8.13"]
[Result "1-0"]
[TimeControl "900+10"]

1. e4 {[%emt 00:00:02] [%clk 00:15:17]} c6 {[%emt 00:00:05] [%clk 00:15:15]} 2.
d4 {[%emt 00:00:03] [%clk 00:15:24]} d5 {[%emt 00:00:01] [%clk 00:15:24]} 3. e5
{[%emt 00:00:01] [%clk 00:15:33]} Bf5 {[%emt 00:00:02] [%clk 00:15:32]} 4. h4
{[%emt 00:00:02] [%clk 00:15:41]} h5 {[%emt 00:00:03] [%clk 00:15:39]} 5. Bd3
{[%emt 00:00:04] [%clk 00:15:48]} Bxd3 {[%emt 00:00:02] [%clk 00:15:47]} 6. Qxd3
{[%emt 00:00:01] [%clk 00:15:56]} e6 {[%emt 00:00:29] [%clk 00:15:28]} 7. Bg5
{[%emt 00:00:03] [%clk 00:16:03]} Qb6 {[%emt 00:00:52] [%clk 00:14:47]} 8. Nd2
{[%emt 00:00:01] [%clk 00:16:11]} c5 {[%emt 00:00:41] [%clk 00:14:16]} 9. c4
{[%emt 00:00:01] [%clk 00:16:20]} Nc6 {[%emt 00:00:02] [%clk 00:14:24]} 10. Ngf3
{[%emt 00:01:52] [%clk 00:14:37]} cxd4 {[%emt 00:00:03] [%clk 00:14:32]} 11. O-O
{[%emt 00:01:17] [%clk 00:13:30]} Nge7 {[%emt 00:00:12] [%clk 00:14:31]} 12. a3
{[%emt 00:00:57] [%clk 00:12:42]} Qxb2 {[%emt 00:04:37] [%clk 00:10:04]} 13.
Rfc1 {[%emt 00:02:21] [%clk 00:10:30]} Qb6 {[%emt 00:01:36] [%clk 00:08:39]} 14.
cxd5 {[%emt 00:02:20] [%clk 00:08:20]} Nxd5 {[%emt 00:00:08] [%clk 00:08:41]}
15. Rab1 {[%clk 00:08:29]} Qc7 {[%emt 00:00:04] [%clk 00:08:47]} 16. Nxd4 {[%emt
00:00:08] [%clk 00:08:32]} Qd7 {[%emt 00:06:01] [%clk 00:02:55]} 17. Nxc6 {[%emt
00:01:12] [%clk 00:07:30]} bxc6 {[%emt 00:00:01] [%clk 00:03:04]} 18. Ne4 {[%emt
00:01:27] [%clk 00:06:13]} Nb6 {[%emt 00:00:13] [%clk 00:03:02]} 19. Qa6 {[%emt
00:02:02] [%clk 00:04:21]} Qc8 {[%emt 00:00:57] [%clk 00:02:15]} 20. Qa5 {[%emt
00:00:02] [%clk 00:04:29]} Qc7 {[%emt 00:00:52] [%clk 00:01:32]} 21. Rd1 {[%emt
00:00:24] [%clk 00:04:16]} Rc8 {[%emt 00:00:28] [%clk 00:01:14]} 22. Rd3 {[%emt
00:00:34] [%clk 00:03:52]} Nd5 {[%emt 00:00:54] [%clk 00:00:29]} 23. Qa6 {[%emt
00:00:53] [%clk 00:03:09]} Nb6 {[%emt 00:00:16] [%clk 00:00:23]} 24. a4 {[%emt
00:00:42] [%clk 00:02:37]} 1-0

[Site "Europe Echecs"]

[Event "Championnat d'Europe Rapide"]
[Date "2024.12.08"]
[White "Grigoriants, Sergey"]
[Black "Tudor, Henry Edward"]
[WhiteElo "2542"]
[BlackElo "2375"]
[Round "8.14"]
[Result "1-0"]
[TimeControl "900+10"]

1. d4 {[%emt 00:00:03] [%clk 00:15:15]} Nf6 {[%emt 00:00:02] [%clk 00:15:18]} 2.
c4 {[%emt 00:00:04] [%clk 00:15:21]} e6 {[%emt 00:00:02] [%clk 00:15:25]} 3. Nc3
{[%emt 00:00:08] [%clk 00:15:24]} Bb4 {[%emt 00:00:03] [%clk 00:15:32]} 4. e3
{[%emt 00:00:06] [%clk 00:15:28]} O-O {[%emt 00:00:02] [%clk 00:15:39]} 5. Bd3
{[%emt 00:00:21] [%clk 00:15:17]} d5 {[%emt 00:00:03] [%clk 00:15:46]} 6. a3
{[%emt 00:00:57] [%clk 00:14:31]} Bxc3+ {[%emt 00:00:11] [%clk 00:15:45]} 7.
bxc3 {[%emt 00:00:02] [%clk 00:14:38]} dxc4 {[%emt 00:00:02] [%clk 00:15:53]} 8.
Bxc4 {[%emt 00:00:03] [%clk 00:14:46]} c5 {[%emt 00:00:05] [%clk 00:15:58]} 9.
Ne2 {[%emt 00:00:03] [%clk 00:14:53]} Qc7 {[%emt 00:00:15] [%clk 00:15:53]} 10.
Ba2 {[%emt 00:00:10] [%clk 00:14:53]} Nc6 {[%emt 00:01:16] [%clk 00:14:47]} 11.
O-O {[%emt 00:00:18] [%clk 00:14:45]} b6 {[%emt 00:00:36] [%clk 00:14:20]} 12.
Ng3 {[%emt 00:00:39] [%clk 00:14:16]} Rd8 {[%emt 00:01:57] [%clk 00:12:33]} 13.
Re1 {[%emt 00:00:38] [%clk 00:13:48]} Na5 {[%emt 00:01:59] [%clk 00:10:45]} 14.
e4 {[%emt 00:02:08] [%clk 00:11:50]} cxd4 {[%emt 00:00:57] [%clk 00:09:58]} 15.
cxd4 {[%emt 00:00:02] [%clk 00:11:58]} Qc3 {[%emt 00:00:02] [%clk 00:10:06]} 16.
Be3 {[%emt 00:04:43] [%clk 00:07:25]} Bb7 {[%emt 00:02:45] [%clk 00:07:30]} 17.
d5 {[%emt 00:00:09] [%clk 00:07:26]} Qxa3 {[%emt 00:03:46] [%clk 00:03:55]} 18.
Bg5 {[%emt 00:03:08] [%clk 00:04:29]} Qf8 {[%emt 00:03:24] [%clk 00:00:40]} 19.
Qf3 {[%emt 00:02:22] [%clk 00:02:17]} exd5 {[%emt 00:00:02] [%clk 00:00:49]} 20.
exd5 {[%emt 00:00:10] [%clk 00:02:16]} Rxd5 {[%emt 00:00:41] [%clk 00:00:18]}
21. Bxf6 {[%emt 00:00:32] [%clk 00:01:54]} Rd6 {[%emt 00:00:13] [%clk 00:00:15]}
22. Be7 {[%emt 00:00:04] [%clk 00:02:00]} Bxf3 {[%emt 00:00:03] [%clk 00:00:22]}
23. Bxf8 {[%emt 00:00:02] [%clk 00:02:08]} Kxf8 {[%clk 00:00:31]} 24. gxf3
{[%emt 00:00:02] [%clk 00:02:16]} Rad8 {[%emt 00:00:25] [%clk 00:00:16]} 25. Ne4
{[%emt 00:00:49] [%clk 00:01:36]} R6d7 {[%emt 00:00:13] [%clk 00:00:14]} 26.
Rac1 {[%emt 00:00:04] [%clk 00:01:42]} h6 {[%emt 00:00:04] [%clk 00:00:20]} 27.
Kg2 {[%emt 00:00:32] [%clk 00:01:20]} g6 {[%emt 00:00:09] [%clk 00:00:22]} 28.
f4 {[%emt 00:00:13] [%clk 00:01:16]} Kg7 {[%emt 00:00:04] [%clk 00:00:28]} 29.
Re3 {[%emt 00:00:05] [%clk 00:01:21]} Re7 {[%emt 00:00:21] [%clk 00:00:17]} 30.
f5 {[%emt 00:00:12] [%clk 00:01:19]} gxf5 {[%emt 00:00:05] [%clk 00:00:22]} 31.
Nd6 {[%emt 00:00:12] [%clk 00:01:17]} Rxe3 {[%emt 00:00:06] [%clk 00:00:27]} 32.
Nxf5+ {[%emt 00:00:01] [%clk 00:01:25]} Kf6 {[%emt 00:00:22] [%clk 00:00:15]}
33. Nxe3 {[%emt 00:00:01] [%clk 00:01:33]} Rd7 {[%emt 00:00:11] [%clk 00:00:15]}
34. Kf3 {[%emt 00:00:20] [%clk 00:01:23]} h5 {[%emt 00:00:14] [%clk 00:00:11]}
35. h4 {[%emt 00:00:09] [%clk 00:01:24]} Nb7 {[%emt 00:00:10] [%clk 00:00:11]}
36. Rc6+ {[%emt 00:00:13] [%clk 00:01:20]} Ke5 {[%emt 00:00:07] [%clk 00:00:15]}
37. Rh6 {[%emt 00:00:05] [%clk 00:01:25]} Nc5 {[%emt 00:00:07] [%clk 00:00:18]}
38. Rxh5+ {[%emt 00:00:03] [%clk 00:01:32]} Kf6 {[%clk 00:00:27]} 39. Rh6+
{[%emt 00:00:13] [%clk 00:01:29]} Kg7 {[%emt 00:00:08] [%clk 00:00:29]} 40. Nf5+
{[%emt 00:00:05] [%clk 00:01:34]} Kg8 {[%clk 00:00:38]} 41. Rd6 {[%emt 00:00:39]
[%clk 00:01:04]} b5 {[%emt 00:00:12] [%clk 00:00:37]} 42. Rg6+ {[%emt 00:00:37]
[%clk 00:00:37]} Kh8 {[%emt 00:00:03] [%clk 00:00:43]} 43. Rh6+ {[%emt 00:00:20]
[%clk 00:00:28]} Kg8 {[%emt 00:00:01] [%clk 00:00:52]} 44. Ke3 {[%emt 00:00:12]
[%clk 00:00:25]} b4 {[%emt 00:00:50] [%clk 00:00:13]} 45. Rc6 {[%emt 00:00:03]
[%clk 00:00:32]} Rd3+ {[%emt 00:00:05] [%clk 00:00:18]} 46. Ke2 {[%emt 00:00:10]
[%clk 00:00:32]} Rc3 {[%emt 00:00:11] [%clk 00:00:18]} 47. Rc8+ {[%emt 00:00:15]
[%clk 00:00:27]} Kh7 {[%clk 00:00:27]} 48. Bxf7 {[%emt 00:00:02] [%clk
00:00:34]} Nd3 {[%emt 00:00:26] [%clk 00:00:12]} 49. Rxc3 {[%clk 00:00:32]} Nf4+
{[%emt 00:00:14] [%clk 00:00:21]} 50. Kd2 {[%emt 00:00:11] [%clk 00:00:30]}
bxc3+ {[%clk 00:00:30]} 51. Kxc3 {[%emt 00:00:02] [%clk 00:00:38]} Nh3 {[%emt
00:00:14] [%clk 00:00:26]} 52. f3 {[%emt 00:00:05] [%clk 00:00:43]} Ng1 {[%emt
00:00:10] [%clk 00:00:26]} 53. Nd4 {[%emt 00:00:09] [%clk 00:00:44]} a5 {[%emt
00:00:20] [%clk 00:00:16]} 54. Be6 {[%emt 00:00:10] [%clk 00:00:44]} Kg6 {[%emt
00:00:04] [%clk 00:00:22]} 55. Bg4 {[%emt 00:00:04] [%clk 00:00:50]} 1-0

[Site "Europe Echecs"]